fUST/lending_fUST_20240302
["ID","MTS","AMOUNT","RATE_DAILY","PERIOD"]
[316119825,1709362236026,-266.87471245,0.00020547,2]
[316119826,1709362236036,-500.0,0.00020547,2]
[316119827,1709362236045,-500.0,0.00020547,2]
[316119828,1709362236055,-501.48020078,0.00020547,2]
[316119829,1709362236065,-211.14111785,0.00020547,2]
[316119830,1709362236075,-500.0,0.00020547,2]
[316119831,1709362236084,-607.88709182,0.00020547,2]
[316119832,1709362236093,-502.70543605,0.00020547,2]
[316119833,1709362236102,-502.40997722,0.00020547,2]
[316119834,1709362236112,-503.66105551,0.00020547,2]
[316119835,1709362236121,-591.87399318,0.00020547,2]
[316119836,1709362236130,-500.0,0.00020547,2]
[316119837,1709362236139,-512.19751019,0.00020547,2]
[316119838,1709362236148,-501.30795777,0.00020547,2]
[316119839,1709362236158,-308.78685057,0.00020547,2]
[316119840,1709362236167,-500.0,0.00020547,2]
[316119841,1709362236176,-500.0,0.00020547,2]
[316119842,1709362236185,-500.0,0.00020547,2]
[316119843,1709362236194,-500.0,0.00020547,2]
[316119844,1709362236204,-503.07157685,0.00020547,2]
[316119846,1709362236213,-500.0,0.00020547,2]
[316119848,1709362236222,-501.55616831,0.00020547,2]
[316119850,1709362236231,-500.0,0.00020547,2]
[316119852,1709362236240,-500.0,0.00020547,2]
[316119854,1709362236250,-500.0,0.00020547,2]
[316119856,1709362236259,-500.0,0.00020547,2]
[316119858,1709362236269,-501.22965131,0.00020547,2]
[316119860,1709362236277,-500.0,0.00020547,2]
[316119862,1709362236286,-500.0,0.00020547,2]
[316119864,1709362236295,-616.6890874,0.00020547,2]
[316119865,1709362236305,-500.71022686,0.00020547,2]
[316119867,1709362236314,-500.0,0.00020547,2]
[316119869,1709362236323,-500.0,0.00020547,2]
[316119871,1709362236333,-632.78900236,0.00020547,2]
[316119874,1709362236343,-243.20644617,0.00020547,2]
[316119875,1709362236352,-500.0,0.00020547,2]
[316119877,1709362236361,-500.0,0.00020547,2]
[316119879,1709362236371,-500.0,0.00020547,2]
[316119881,1709362236380,-500.54359379,0.00020547,2]
[316119883,1709362236389,-500.0,0.00020547,2]
[316119885,1709362236398,-500.0,0.00020547,2]
[316119887,1709362236407,-500.0,0.00020547,2]
[316119889,1709362236417,-500.77842844,0.00020547,2]
[316119891,1709362236426,-500.0,0.00020547,2]
[316119893,1709362236435,-500.0,0.00020547,2]
[316119896,1709362236448,-500.0,0.00020547,2]
[316119898,1709362236457,-500.8553758,0.00020547,2]
[316119899,1709362236466,-500.76464429,0.00020547,2]
[316119902,1709362236476,-500.0,0.00020547,2]
[316119903,1709362236486,-500.0,0.00020547,2]
[316119905,1709362236495,-500.0,0.00020547,2]
[316119908,1709362236506,-500.0,0.00020547,2]
[316119910,1709362236515,-500.0,0.00020547,2]
[316119912,1709362236525,-500.0,0.00020547,2]
[316119913,1709362236534,-467.42866008,0.00020547,2]
[316119915,1709362236544,-624.92,0.00020547,2]
[316119917,1709362236554,-500.0,0.00020547,2]
[316119919,1709362236563,-500.0,0.00020547,2]
[316119921,1709362236572,-500.0,0.00020547,2]
[316119923,1709362236582,-500.0,0.00020547,2]
[316119925,1709362236591,-480.33059787,0.00020547,2]
[316119927,1709362236601,-227.84100271,0.00020547,2]
[316119929,1709362236611,-170.26427134,0.00020547,2]
[316119931,1709362236620,-500.0,0.00020547,2]
[316119933,1709362236630,-500.0,0.00020547,2]
[316119935,1709362236640,-500.0,0.00020547,2]
[316119937,1709362236649,-500.0,0.00020547,2]
[316119939,1709362236658,-500.0,0.00020547,2]
[316119942,1709362236667,-500.0,0.00020547,2]
[316119943,1709362236677,-500.0,0.00020547,2]
[316119945,1709362236687,-500.0,0.00020547,2]
[316119947,1709362236697,-500.0,0.00020547,2]
[316119949,1709362236706,-1533.02,0.00020547,2]
[316119952,1709362236716,-500.0,0.00020547,2]
[316119953,1709362236725,-500.0,0.00020547,2]
[316119955,1709362236734,-500.0,0.00020547,2]
[316119957,1709362236743,-500.0,0.00020547,2]
[316119959,1709362236753,-582.39,0.00020547,2]
[316119961,1709362236762,-500.0,0.00020547,2]
[316119963,1709362236772,-500.0,0.00020547,2]
[316119965,1709362236781,-500.0,0.00020547,2]
[316119967,1709362236791,-408.38791988,0.00020547,2]
[316119969,1709362236800,-502.16052335,0.00020547,2]
[316119970,1709362236809,-300.90386358,0.00020547,2]
[316119972,1709362236818,-500.0,0.00020547,2]
[316119974,1709362236828,-500.0,0.00020547,2]
[316119976,1709362236837,-500.0,0.00020547,2]
[316119978,1709362236846,-500.0,0.00020547,2]
[316119979,1709362236855,-500.0,0.00020547,2]
[316119981,1709362236865,-500.0,0.00020547,2]
[316119983,1709362236874,-500.0,0.00020547,2]
[316119985,1709362236883,-500.0,0.00020547,2]
[316119987,1709362236893,-500.0,0.00020547,2]
[316119989,1709362236903,-500.0,0.00020547,2]
[316119991,1709362236912,-500.0,0.00020547,2]
[316119993,1709362236921,-500.0,0.00020547,2]
[316119995,1709362236930,-500.0,0.00020547,2]
[316119997,1709362236940,-500.0,0.00020547,2]
[316119999,1709362236949,-500.0,0.00020547,2]
[316120000,1709362236959,-358.64605871,0.00020547,2]
[316120001,1709362236969,-501.01578572,0.00020547,2]
[316120002,1709362236978,-500.0,0.00020547,2]
[316120003,1709362236987,-500.17439852,0.00020547,2]
[316120004,1709362236997,-500.0,0.00020547,2]
[316120005,1709362237006,-500.0,0.00020547,2]
[316120006,1709362237016,-500.0,0.00020547,2]
[316120008,1709362237025,-500.0,0.00020547,2]
[316120010,1709362237035,-500.0,0.00020547,2]
[316120012,1709362237045,-2256.73,0.00020547,2]
[316120014,1709362237057,-272.35,0.00021785,3]
[316120016,1709362237067,-500.0,0.00021794,2]
[316120018,1709362237078,-500.0,0.00021794,2]
[316120020,1709362237087,-500.0,0.00021794,2]
[316120022,1709362237096,-500.0,0.00021795,2]
[316120024,1709362237105,-502.0914706,0.00021795,2]
[316120026,1709362237114,-500.0,0.00021795,2]
[316120029,1709362237258,-500.0,0.00021795,2]
[316120030,1709362237268,-503.84544124,0.00021795,2]
[316120031,1709362237278,-500.0,0.00021795,2]
[316120032,1709362237287,-500.0,0.00021795,2]
[316120033,1709362237296,-501.84311006,0.00021795,2]
[316120034,1709362237306,-501.33955276,0.00021795,2]
[316120035,1709362237316,-500.0,0.00021795,2]
[316120036,1709362237327,-500.0,0.00021795,2]
[316120037,1709362237337,-503.9708363,0.00021795,2]
[316120038,1709362237347,-500.0,0.00021795,2]
[316120039,1709362237356,-500.0,0.00021795,2]
[316120040,1709362237366,-500.0,0.00021795,2]
[316120041,1709362237375,-500.0,0.00021795,2]
[316120042,1709362237386,-500.0,0.00021795,2]
[316120043,1709362237395,-227.19034493,0.00021795,2]
[316120044,1709362237404,-624.92,0.00021795,2]
[316120045,1709362237413,-500.0,0.00021795,2]
[316120046,1709362237422,-500.0,0.00021795,2]
[316120047,1709362237432,-500.0,0.00021795,2]
[316120048,1709362237442,-500.0,0.00021795,2]
[316120049,1709362237451,-500.0,0.00021795,2]
[316120050,1709362237463,-500.0,0.00021795,2]
[316120051,1709362237472,-500.0,0.00021795,2]
[316120052,1709362237481,-500.0,0.00021795,2]
[316120053,1709362237490,-500.0,0.00021795,2]
[316120054,1709362237499,-500.0,0.00021795,2]
[316120055,1709362237509,-1533.02,0.00021795,2]
[316120056,1709362237517,-500.0,0.00021795,2]
[316120057,1709362237527,-501.6930106,0.00021795,2]
[316120058,1709362237537,-582.39,0.00021795,2]
[316120059,1709362237547,-500.0,0.00021795,2]
[316120060,1709362237557,-502.07424226,0.00021795,2]
[316120061,1709362237567,-500.0,0.00021795,2]
[316120062,1709362237579,-500.0,0.00021795,2]
[316120063,1709362237589,-505.34162691,0.00021795,2]
[316120064,1709362237599,-500.0,0.00021795,2]
[316120065,1709362237609,-500.0,0.00021795,2]
[316120066,1709362237619,-500.0,0.00021795,2]
[316120067,1709362237628,-537.49538098,0.00021795,2]
[316120068,1709362237638,-501.930707,0.00021795,2]
[316120069,1709362237648,-500.0,0.00021795,2]
[316120070,1709362237657,-500.0,0.00021795,2]
[316120071,1709362237666,-501.69512235,0.00021795,2]
[316120072,1709362237675,-500.0,0.00021795,2]
[316120073,1709362237685,-400.39372358,0.00021795,2]
[316120074,1709362237694,-500.0,0.00021795,2]
[316120075,1709362237703,-500.0,0.00021795,2]
[316120076,1709362237712,-500.0,0.00021795,2]
[316120077,1709362237721,-500.0,0.00021795,2]
[316120078,1709362237731,-500.0,0.00021796,2]
[316120079,1709362237741,-500.0,0.00021796,2]
[316120080,1709362237750,-500.0,0.00021796,2]
[316120081,1709362237759,-197.67431934,0.00021796,2]
[316120082,1709362237768,-500.0,0.00021796,2]
[316120083,1709362237777,-500.0,0.00021796,2]
[316120084,1709362237786,-500.0,0.00021796,2]
[316120085,1709362237795,-500.0,0.00021796,2]
[316120086,1709362237804,-500.0,0.00021796,2]
[316120087,1709362237812,-500.0,0.00021796,2]
[316120088,1709362237822,-500.0,0.00021796,2]
[316120089,1709362237833,-500.0,0.00021796,2]
[316120090,1709362237842,-500.0,0.00021796,2]
[316120091,1709362237851,-500.0,0.00021796,2]
[316120092,1709362237861,-500.0,0.00021796,2]
[316120093,1709362237871,-500.0,0.00021796,2]
[316120094,1709362237880,-502.90038558,0.00021796,2]
[316120095,1709362237889,-500.0,0.00021796,2]
[316120096,1709362237900,-500.0,0.00021796,2]
[316120097,1709362237909,-500.0,0.00021796,2]
[316120098,1709362237919,-581.16057071,0.00021796,2]
[316120099,1709362237928,-500.0,0.00021796,2]
[316120100,1709362237936,-500.0,0.00021796,2]
[316120101,1709362237945,-500.0,0.00021796,2]
[316120102,1709362237954,-500.0,0.00021796,2]
[316120103,1709362237963,-164.24596392,0.00021796,2]
[316120104,1709362237972,-500.0,0.00021796,2]
[316120105,1709362237980,-375.39203134,0.00021796,2]
[316120106,1709362237989,-500.0,0.00021796,2]
[316120107,1709362237998,-500.0,0.00021796,2]
[316120108,1709362238007,-612.25,0.00021796,2]
[316120109,1709362238017,-500.0,0.00021796,2]
[316120110,1709362238027,-500.0,0.00021796,2]
[316120111,1709362238037,-692.54,0.00021796,2]
[316120112,1709362238046,-501.59725895,0.00021796,2]
[316120114,1709362238055,-500.0,0.00021796,2]
[316120116,1709362238064,-500.0,0.00021796,2]
[316120117,1709362238073,-500.0,0.00021796,2]
[316120118,1709362238084,-2657.69,0.00021796,2]
[316120119,1709362238093,-500.0,0.00021796,2]
[316120120,1709362238102,-640.06006059,0.00021797,2]
[316120121,1709362238111,-368.18107388,0.00021797,2]
[316120124,1709362238121,-500.0,0.00021797,2]
[316120127,1709362238130,-500.0,0.00021973,2]
[316120129,1709362238139,-736.22425661,0.00021974,2]
[316120131,1709362238147,-2100.0,0.00021974,2]
[316120133,1709362238156,-187.18955256,0.00021974,2]
[316120135,1709362238165,-743.85566433,0.0002198,2]
[316120136,1709362238175,-469.01702807,0.00021986,2]
[316120137,1709362238183,-470.38426508,0.00021992,2]
[316120139,1709362238192,-411.96455817,0.00021999,2]
[316120140,1709362238201,-241.51080244,0.00022,2]
[316120141,1709362238210,-157.1486779,0.00022004,2]
[316120143,1709362238219,-327.2251864,0.00022005,2]
[316120145,1709362238228,-2685.31196438,0.00022006,3]
[316120146,1709362238237,-2970.28168292,0.00022013,3]
[316120147,1709362238246,-1183.54781383,0.00022013,3]
[316120149,1709362238256,-213.60098272,0.00022659,2]
[316120151,1709362238264,-500.0,0.00022757,2]
[316120153,1709362238274,-624.92,0.00022757,2]
[316120155,1709362238283,-500.0,0.00022757,2]
[316120157,1709362238293,-500.0,0.00022757,2]
[316120159,1709362238302,-500.0,0.00022757,2]
[316120161,1709362238311,-500.0,0.00022757,2]
[316120163,1709362238320,-500.0,0.00022757,2]
[316120165,1709362238329,-500.0,0.00022757,2]
[316120167,1709362238338,-500.0,0.00022757,2]
[316120170,1709362238348,-500.0,0.00022757,2]
[316120171,1709362238357,-502.50946322,0.00022757,2]
[316120173,1709362238366,-500.0,0.00022757,2]
[316120175,1709362238375,-500.0,0.00022757,2]
[316120177,1709362238385,-500.0,0.00022757,2]
[316120179,1709362238395,-620.26214085,0.00022757,2]
[316120181,1709362238405,-500.0,0.00022757,2]
[316120183,1709362238414,-4526.30228622,0.00022758,2]
[316120186,1709362238425,-500.0,0.00022758,2]
[316120188,1709362238434,-500.0,0.00022758,2]
[316120190,1709362238443,-500.0,0.00022758,2]
[316120191,1709362238452,-500.0,0.00022758,2]
[316120193,1709362238463,-500.0,0.00022758,2]
[316120195,1709362238472,-501.7806128,0.00022758,2]
[316120197,1709362238482,-500.0,0.00022758,2]
[316120199,1709362238491,-500.0,0.00022758,2]
[316120202,1709362238501,-500.0,0.00022758,2]
[316120204,1709362238510,-500.0,0.00022758,2]
[316120205,1709362238519,-500.0,0.00022758,2]
[316120207,1709362238528,-500.0,0.00022758,2]
[316120209,1709362238538,-500.0,0.00022758,2]
[316120211,1709362238548,-500.0,0.00022758,2]
[316120213,1709362238558,-1533.02,0.00022758,2]
[316120215,1709362238567,-582.39,0.00022758,2]
[316120216,1709362238576,-400.0,0.00022758,2]
[316120218,1709362238585,-500.0,0.00022758,2]
[316120220,1709362238594,-500.0,0.00022758,2]
[316120222,1709362238603,-500.0,0.00022758,2]
[316120223,1709362238613,-500.0,0.00022758,2]
[316120225,1709362238622,-347.6967008,0.00022759,2]
[316120227,1709362238633,-500.0,0.00022759,2]
[316120229,1709362238642,-500.0,0.00022759,2]
[316120231,1709362238651,-500.0,0.00022759,2]
[316120233,1709362238661,-500.0,0.00022759,2]
[316120235,1709362238670,-500.0,0.00022759,2]
[316120237,1709362238679,-500.0,0.00022759,2]
[316120239,1709362238689,-500.0,0.00022759,2]
[316120240,1709362238698,-500.0,0.00022759,2]
[316120242,1709362238707,-500.0,0.00022759,2]
[316120244,1709362238716,-500.0,0.00022759,2]
[316120246,1709362238725,-509.59248971,0.00022759,2]
[316120248,1709362238735,-500.0,0.00022759,2]
[316120250,1709362238743,-500.0,0.00022759,2]
[316120252,1709362238753,-500.0,0.00022759,2]
[316120253,1709362238762,-500.0,0.00022759,2]
[316120255,1709362238771,-500.0,0.00022759,2]
[316120257,1709362238780,-500.0,0.00022759,2]
[316120259,1709362238789,-500.0,0.00022759,2]
[316120261,1709362238798,-500.0,0.00022759,2]
[316120263,1709362238807,-500.0,0.00022759,2]
[316120264,1709362238816,-505.23421377,0.00022759,2]
[316120266,1709362238826,-500.0,0.00022759,2]
[316120268,1709362238836,-500.0,0.00022759,2]
[316120270,1709362238845,-500.0,0.00022759,2]
[316120272,1709362238854,-500.0,0.00022759,2]
[316120274,1709362238863,-500.0,0.00022759,2]
[316120275,1709362238873,-500.0,0.00022919,2]
[316120277,1709362238882,-500.0,0.00022919,2]
[316120279,1709362238891,-500.0,0.00022919,2]
[316120281,1709362238900,-500.0,0.00022919,2]
[316120283,1709362238909,-500.0,0.00022919,2]
[316120285,1709362238918,-398.08673107,0.00022921,2]
[316120287,1709362238927,-1755.44626107,0.00023,2]
[316120289,1709362238936,-1396.0,0.00023,2]
[316120291,1709362238945,-154.0233964,0.00023178,2]
[316120293,1709362238954,-1000.0,0.00023609,5]
[316120294,1709362238963,-1000.0,0.00023609,5]
[316120296,1709362238972,-1000.0,0.00023613,5]
[316120298,1709362238981,-1000.0,0.00023615,5]
[316120300,1709362238990,-500.0,0.00023621,2]
[316120302,1709362238999,-624.92,0.00023621,2]
[316120304,1709362239008,-500.0,0.00023621,2]
[316120306,1709362239017,-500.0,0.00023621,2]
[316120307,1709362239026,-500.0,0.00023621,2]
[316120309,1709362239035,-500.0,0.00023621,2]
[316120311,1709362239044,-500.0,0.00023621,2]
[316120313,1709362239054,-500.0,0.00023621,2]
[316120315,1709362239064,-500.0,0.00023621,2]
[316120316,1709362239073,-5000.0,0.00023622,5]
[316120318,1709362239084,-580.0,0.000237,2]
[316120320,1709362239093,-213.60098272,0.000239,2]
[316120322,1709362239102,-740.65520571,0.00023974,2]
[316120324,1709362239111,-500.0,0.00023992,2]
[316120326,1709362239121,-507.59555293,0.00023993,2]
[316120328,1709362239129,-510.39512143,0.00023993,2]
[316120330,1709362239138,-500.0,0.00023993,2]
[316120331,1709362239147,-500.0,0.00023993,2]
[316120333,1709362239157,-500.0,0.00023993,2]
[316120335,1709362239166,-502.45945537,0.00023993,2]
[316120337,1709362239174,-500.0,0.00023993,2]
[316120339,1709362239183,-502.9304383,0.00023993,2]
[316120341,1709362239192,-500.0,0.00023993,2]
[316120342,1709362239201,-500.0,0.00023993,2]
[316120344,1709362239210,-311.91789086,0.00023993,2]
[316120346,1709362239219,-500.0,0.00023993,2]
[316120348,1709362239228,-1533.02,0.00023993,2]
[316120350,1709362239238,-582.39,0.00023993,2]
[316120352,1709362239247,-500.0,0.00023993,2]
[316120353,1709362239256,-500.0,0.00023993,2]
[316120355,1709362239265,-500.0,0.00023994,2]
[316120357,1709362239274,-500.0,0.00023994,2]
[316120359,1709362239283,-500.0,0.00023994,2]
[316120361,1709362239292,-500.0,0.00023994,2]
[316120363,1709362239301,-500.0,0.00023994,2]
[316120365,1709362239310,-500.0,0.00023994,2]
[316120374,1709362239395,-500.0,0.00023994,2]
[316120376,1709362239403,-500.0,0.00023994,2]
[316120377,1709362239413,-500.0,0.00023994,2]
[316120379,1709362239422,-508.88840871,0.00023994,2]
[316120381,1709362239431,-400.0,0.00023994,2]
[316120383,1709362239440,-500.0,0.00023994,2]
[316120385,1709362239450,-500.0,0.00023994,2]
[316120387,1709362239459,-500.0,0.00023994,2]
[316120388,1709362239470,-500.0,0.00023994,2]
[316120390,1709362239479,-500.0,0.00023994,2]
[316120392,1709362239489,-500.0,0.00023994,2]
[316120394,1709362239498,-500.0,0.00023995,2]
[316120396,1709362239507,-500.0,0.00023995,2]
[316120398,1709362239516,-500.0,0.00023995,2]
[316120400,1709362239525,-500.0,0.00023995,2]
[316120402,1709362239534,-500.0,0.00023995,2]
[316120404,1709362239544,-500.0,0.00023995,2]
[316120406,1709362239554,-507.82803785,0.00023995,2]
[316120408,1709362239563,-500.0,0.00023995,2]
[316120410,1709362239573,-500.0,0.00023995,2]
[316120412,1709362239582,-500.0,0.00023995,2]
[316120414,1709362239592,-500.0,0.00023995,2]
[316120415,1709362239601,-500.0,0.00023995,2]
[316120417,1709362239610,-500.0,0.00023996,2]
[316120419,1709362239619,-500.0,0.00023996,2]
[316120421,1709362239629,-500.0,0.00023996,2]
[316120423,1709362239638,-500.0,0.00023996,2]
[316120425,1709362239648,-500.0,0.00023996,2]
[316120426,1709362239658,-500.0,0.00023996,2]
[316120428,1709362239667,-500.0,0.00023996,2]
[316120430,1709362239675,-500.0,0.00023996,2]
[316120432,1709362239684,-500.0,0.00023996,2]
[316120434,1709362239694,-187.80454548,0.00023996,2]
[316120436,1709362239704,-500.0,0.00023996,2]
[316120438,1709362239713,-500.0,0.00023996,2]
[316120440,1709362239722,-512.52975952,0.00023996,2]
[316120442,1709362239731,-500.0,0.00023996,2]
[316120444,1709362239740,-624.92,0.00023996,2]
[316120445,1709362239750,-500.0,0.00023996,2]
[316120447,1709362239759,-500.0,0.00023996,2]
[316120449,1709362239768,-500.0,0.00023996,2]
[316120451,1709362239777,-500.0,0.00023996,2]
[316120453,1709362239786,-500.0,0.00023996,2]
[316120455,1709362239795,-500.0,0.00023996,2]
[316120457,1709362239805,-500.0,0.00023996,2]
[316120459,1709362239815,-500.0,0.00023996,2]
[316120460,1709362239824,-500.0,0.00023996,2]
[316120462,1709362239833,-188.84097037,0.00023997,2]
[316120464,1709362239842,-500.0,0.00023997,2]
[316120465,1709362239850,-500.0,0.00023997,2]
[316120467,1709362239859,-500.0,0.00023997,2]
[316120469,1709362239868,-500.0,0.00023997,2]
[316120471,1709362239877,-500.0,0.00023997,2]
[316120473,1709362239886,-500.0,0.00023997,2]
[316120474,1709362239895,-500.0,0.00023997,2]
[316120476,1709362239904,-500.0,0.00023997,2]
[316120478,1709362239913,-500.0,0.00023997,2]
[316120480,1709362239922,-500.0,0.00023997,2]
[316120482,1709362239931,-500.0,0.00023997,2]
[316120484,1709362239940,-612.25,0.00023997,2]
[316120486,1709362239949,-500.0,0.00023997,2]
[316120488,1709362239958,-500.0,0.00023997,2]
[316120489,1709362239967,-500.0,0.00023997,2]
[316120491,1709362239976,-500.0,0.00023997,2]
[316120493,1709362239985,-624.92,0.00023997,2]
[316120495,1709362239994,-624.92,0.00023997,2]
[316120497,1709362240004,-500.0,0.00023997,2]
[316120499,1709362240013,-500.0,0.00023997,2]
[316120501,1709362240023,-416.87033049,0.00023997,2]
[316120503,1709362240032,-500.0,0.00023997,2]
[316120505,1709362240041,-500.0,0.00023997,2]
[316120506,1709362240050,-500.0,0.00023997,2]
[316120508,1709362240059,-500.0,0.00023997,2]
[316120510,1709362240068,-500.0,0.00023997,2]
[316120512,1709362240077,-692.54,0.00023997,2]
[316120514,1709362240087,-500.0,0.00023997,2]
[316120516,1709362240097,-500.0,0.00023997,2]
[316120518,1709362240105,-500.0,0.00023997,2]
[316120520,1709362240114,-500.0,0.00023997,2]
[316120522,1709362240123,-500.0,0.00023997,2]
[316120524,1709362240132,-500.0,0.00023997,2]
[316120525,1709362240141,-500.0,0.00023997,2]
[316120527,1709362240152,-1533.02,0.00023997,2]
[316120529,1709362240161,-1533.02,0.00023997,2]
[316120531,1709362240169,-1533.02,0.00023997,2]
[316120533,1709362240178,-500.0,0.00023997,2]
[316120535,1709362240187,-500.0,0.00023997,2]
[316120537,1709362240196,-500.0,0.00023997,2]
[316120539,1709362240204,-500.0,0.00023997,2]
[316120541,1709362240214,-500.0,0.00023997,2]
[316120542,1709362240223,-582.39,0.00023997,2]
[316120544,1709362240232,-582.39,0.00023997,2]
[316120546,1709362240241,-582.39,0.00023997,2]
[316120548,1709362240250,-500.0,0.00023997,2]
[316120550,1709362240259,-500.0,0.00023997,2]
[316120552,1709362240268,-548.10938727,0.00023997,2]
[316120554,1709362240277,-500.0,0.00023997,2]
[316120556,1709362240287,-505.30664244,0.00023997,2]
[316120557,1709362240297,-500.0,0.00023997,2]
[316120559,1709362240306,-500.0,0.00023997,2]
[316120561,1709362240315,-500.0,0.00023997,2]
[316120563,1709362240323,-500.0,0.00023997,2]
[316120566,1709362240338,-500.0,0.00023997,2]
[316120568,1709362240351,-500.0,0.00023997,2]
[316120570,1709362240363,-2657.69,0.00023997,2]
[316120572,1709362240375,-500.0,0.00023997,2]
[316120575,1709362240387,-500.0,0.00023997,2]
[316120576,1709362240397,-500.0,0.00023997,2]
[316120578,1709362240407,-500.0,0.00023997,2]
[316120581,1709362240420,-500.0,0.00023997,2]
[316120583,1709362240431,-500.0,0.00023997,2]
[316120585,1709362240443,-500.0,0.00023997,2]
[316120587,1709362240455,-500.0,0.00023997,2]
[316120589,1709362240470,-500.0,0.00023997,2]
[316120592,1709362240482,-500.0,0.00023997,2]
[316120594,1709362240494,-500.0,0.00023997,2]
[316120596,1709362240506,-500.0,0.00023997,2]
[316120598,1709362240517,-500.0,0.00023997,2]
[316120600,1709362240527,-1154.77837308,0.00023998,2]
[316120602,1709362240538,-214.12256328,0.00023998,2]
[316120604,1709362240550,-229.72686685,0.00023998,2]
[316120606,1709362240561,-201.01292019,0.00023998,2]
[316120608,1709362240572,-438.65995932,0.00023998,2]
[316120611,1709362240585,-238.50130044,0.00023998,2]
[316120613,1709362240595,-180.85606516,0.00023998,2]
[316120614,1709362240606,-377.44459172,0.00023998,2]
[316120615,1709362240617,-16573.61793278,0.00023998,2]
[316120616,1709362240629,-500.0,0.00023998,2]
[316120617,1709362240645,-500.0,0.00023998,2]
[316120618,1709362240655,-500.0,0.00023998,2]
[316120619,1709362240665,-500.0,0.00023998,2]
[316120620,1709362240675,-500.0,0.00023998,2]
[316120621,1709362240690,-500.0,0.00023998,2]
[316120622,1709362240701,-500.0,0.00023998,2]
[316120623,1709362240712,-500.0,0.00023998,2]
[316120624,1709362240724,-500.0,0.00023998,2]
[316120625,1709362240735,-499.53666858,0.00023998,2]
[316120628,1709362240746,-500.0,0.00023998,2]
[316120632,1709362240756,-568.07769231,0.00023998,2]
[316120635,1709362240767,-500.0,0.00023998,2]
[316120639,1709362240780,-500.0,0.00023998,2]
[316120641,1709362240791,-500.0,0.00023998,2]
[316120643,1709362240803,-500.0,0.00023998,2]
[316120645,1709362240814,-555.30644438,0.00023998,2]
[316120647,1709362240826,-500.0,0.00023998,2]
[316120650,1709362240839,-500.0,0.00023998,2]
[316120652,1709362240850,-500.0,0.00023998,2]
[316120654,1709362240862,-500.0,0.00023998,2]
[316120656,1709362240874,-500.0,0.00023998,2]
[316120658,1709362240885,-500.0,0.00023998,2]
[316120660,1709362240895,-500.0,0.00023998,2]
[316120662,1709362240906,-500.0,0.00023998,2]
[316120664,1709362240916,-500.0,0.00023998,2]
[316120666,1709362240927,-500.0,0.00023998,2]
[316120669,1709362240939,-500.0,0.00023998,2]
[316120671,1709362240951,-500.0,0.00023998,2]
[316120673,1709362240964,-500.0,0.00023998,2]
[316120674,1709362240975,-500.0,0.00023998,2]
[316120675,1709362240987,-500.0,0.00023998,2]
[316120678,1709362241000,-500.0,0.00023998,2]
[316120680,1709362241011,-500.0,0.00023998,2]
[316120682,1709362241021,-500.0,0.00023998,2]
[316120684,1709362241031,-500.0,0.00023998,2]